bitfinex/quotes_BTCUSD_20250221
["timestamp","ask_amount","ask_price","bid_price","bid_amount"]
[1740114976440,0.0482508,98353.0,98347.0,8.44274532]
[1740114976628,0.0482508,98353.0,98347.0,8.44994532]
[1740114977033,0.0482508,98353.0,98347.0,8.59274532]
[1740114977275,0.0482508,98353.0,98347.0,8.59074532]
[1740114977450,0.0482508,98353.0,98347.0,8.59894532]
[1740114977662,0.0482508,98353.0,98347.0,8.59994532]
[1740114978059,0.0482508,98353.0,98347.0,8.75146632]
[1740114978411,0.0008508,98353.0,98347.0,8.75246632]
[1740114978592,0.000851,98357.0,98356.0,0.502507]
[1740114978793,0.00092588,98357.0,98356.0,1.77778665]
[1740114979015,3.489e-05,98360.0,98359.0,0.302502]
[1740114979220,0.00091781,98368.0,98367.0,0.51703085]
[1740114979390,0.0008508,98369.0,98368.0,0.16702885]
[1740114979605,0.0008508,98369.0,98368.0,5.31086574]
[1740114979824,0.0008508,98369.0,98368.0,5.46086574]
[1740114980024,0.0008508,98369.0,98368.0,5.68910574]
[1740114980999,0.0078508,98369.0,98368.0,5.69010574]
[1740114981200,0.0138508,98369.0,98368.0,5.53861774]
[1740114981425,0.0138508,98369.0,98368.0,5.69110574]
[1740114981628,0.0138508,98369.0,98368.0,5.70121139]
[1740114983842,0.0138508,98369.0,98368.0,5.72131522]
[1740114984435,0.1408508,98369.0,98368.0,0.40189637]
[1740114984691,0.1408508,98369.0,98368.0,0.35019134]
[1740114985042,0.1408508,98369.0,98368.0,0.50019134]
[1740114985853,0.1408508,98369.0,98368.0,0.49299134]
[1740114986049,0.1408508,98369.0,98368.0,0.50019134]
[1740114987180,0.1408508,98369.0,98368.0,0.49299134]
[1740114987358,0.1408508,98369.0,98368.0,0.50019134]
[1740114989558,0.1408508,98369.0,98368.0,0.53071834]
[1740114991116,0.1408508,98369.0,98368.0,5.54030834]
[1740114991716,0.0603508,98369.0,98368.0,5.54030834]
[1740114991922,0.0138508,98369.0,98368.0,5.54030834]
[1740114992124,0.0138508,98369.0,98368.0,5.57195599]
[1740114992330,0.0138508,98369.0,98368.0,5.42195599]
[1740114995373,0.0138508,98369.0,98368.0,0.41236599]
[1740114995585,0.0138508,98369.0,98368.0,5.42195599]
[1740115002622,0.0138508,98369.0,98368.0,5.42365679]
[1740115004142,0.0138508,98369.0,98368.0,6.12365679]
[1740115006009,0.0138508,98369.0,98368.0,1.11406679]
[1740115006229,0.0138508,98369.0,98368.0,6.12365679]
[1740115010014,0.0138508,98369.0,98368.0,5.42365679]
[1740115010488,0.0138508,98369.0,98368.0,5.39200914]
[1740115010683,0.0138508,98369.0,98368.0,0.37521914]
[1740115010918,0.0930508,98369.0,98368.0,0.74271914]
[1740115011445,0.0930508,98369.0,98368.0,0.98301914]
[1740115011645,0.0870508,98369.0,98368.0,0.98201914]
[1740115011849,0.0860508,98369.0,98368.0,0.98201914]
[1740115012295,0.0870508,98369.0,98368.0,0.98181914]
[1740115012498,0.0810508,98369.0,98368.0,0.98801914]
[1740115012738,0.0810508,98369.0,98368.0,0.88021914]
[1740115012886,0.1293508,98369.0,98368.0,0.85669214]
[1740115013086,0.13440307,98369.0,98368.0,0.86389214]
[1740115013683,0.1293508,98369.0,98368.0,0.86389214]
[1740115013887,0.1293508,98369.0,98368.0,0.36389214]
[1740115014455,0.13438015,98369.0,98368.0,0.36389214]
[1740115014990,0.13238015,98369.0,98368.0,0.34989214]
[1740115015211,0.13338015,98369.0,98368.0,0.35589214]
[1740115015532,0.13438015,98369.0,98368.0,0.35589214]
[1740115017825,0.13438015,98369.0,98368.0,0.34869214]
[1740115018025,0.13438015,98369.0,98368.0,0.35589214]
[1740115020937,0.05518015,98369.0,98368.0,0.35589214]
[1740115026170,0.00788015,98369.0,98368.0,0.35589214]
[1740115028146,0.00788015,98369.0,98368.0,0.12765214]
[1740115052178,0.00788015,98369.0,98368.0,0.13175214]
[1740115054049,0.00788015,98369.0,98368.0,0.14821725]
[1740115054984,0.0028508,98369.0,98368.0,0.14821725]
[1740115064203,0.02,98372.0,98370.0,0.0003981]
[1740115064518,0.02,98372.0,98371.0,0.10264569]
[1740115065485,0.022,98372.0,98371.0,0.10264569]
[1740115065894,0.021,98372.0,98371.0,0.10264569]
[1740115066117,0.022,98372.0,98371.0,0.10864569]
[1740115066342,0.023,98372.0,98371.0,0.11364569]
[1740115068554,0.03987252,98372.0,98371.0,0.11364569]
[1740115069304,0.01987252,98372.0,98371.0,6.361392]
[1740115069511,0.01987252,98372.0,98371.0,6.39310072]
[1740115069868,0.01987252,98372.0,98371.0,6.24061772]
[1740115070009,0.003,98372.0,98371.0,6.24061772]
[1740115070207,0.003,98372.0,98371.0,4.57911772]
[1740115070408,0.003,98372.0,98371.0,4.14561772]
[1740115070815,0.0038508,98372.0,98371.0,4.14561772]
[1740115071055,0.0038508,98372.0,98371.0,4.99810072]
[1740115071232,0.0028508,98372.0,98371.0,4.99310072]
[1740115071436,0.0018508,98372.0,98371.0,4.84161772]
[1740115071616,0.0018508,98372.0,98371.0,4.84861772]
[1740115072053,0.0008508,98372.0,98371.0,4.99410072]
[1740115072460,0.0068508,98372.0,98371.0,4.99530072]
[1740115072663,0.0068508,98372.0,98371.0,4.99630072]
[1740115073079,0.0068508,98372.0,98371.0,4.84381772]
[1740115073612,0.0068508,98372.0,98371.0,4.99630072]
[1740115074809,0.0068508,98372.0,98371.0,5.01620263]
[1740115076799,0.0068508,98372.0,98371.0,4.98449391]
[1740115076997,0.0068508,98372.0,98371.0,4.83201091]
[1740115077221,0.0068508,98372.0,98371.0,4.86363633]
[1740115077433,0.0068508,98372.0,98371.0,4.98449391]
[1740115078456,0.0068508,98372.0,98371.0,7.07710091]
[1740115079353,0.0068508,98372.0,98371.0,7.22958391]
[1740115079796,0.0068508,98372.0,98371.0,7.07710091]
[1740115080834,0.0068508,98372.0,98371.0,7.22958391]
[1740115081395,0.0068508,98372.0,98371.0,7.07710091]
[1740115081595,0.0068508,98372.0,98371.0,2.33157408]
[1740115081818,0.0068508,98372.0,98371.0,1.85637408]
[1740115082024,0.0068508,98372.0,98371.0,3.05417408]
[1740115082316,0.0068508,98372.0,98371.0,3.04697408]
[1740115082505,0.0068508,98372.0,98371.0,3.05417408]
[1740115083027,0.0068508,98372.0,98371.0,1.84917408]
[1740115083222,0.0068508,98372.0,98371.0,1.85637408]
[1740115083530,0.0068508,98372.0,98371.0,1.83647217]
[1740115084016,0.0008508,98372.0,98371.0,1.83547217]
[1740115084372,0.0008508,98372.0,98371.0,1.84147217]
[1740115084583,0.0018508,98372.0,98371.0,1.84147217]
[1740115084778,0.0028508,98372.0,98371.0,1.84847217]
[1740115085643,0.0028508,98372.0,98371.0,1.14847217]
[1740115087891,0.0028508,98372.0,98371.0,1.14127217]
[1740115088091,0.0028508,98372.0,98371.0,1.14847217]
[1740115089534,0.0028508,98372.0,98371.0,1.84847217]
[1740115094710,0.0024527,98372.0,98371.0,1.84847217]
[1740115094894,0.0024527,98372.0,98371.0,0.82384569]
[1740115116481,0.0024527,98372.0,98371.0,0.82554709]
[1740115120012,0.0024527,98372.0,98371.0,0.12554709]
[1740115121420,0.0024527,98372.0,98371.0,0.15722994]
[1740115123009,0.0024527,98372.0,98371.0,0.85722994]
[1740115123676,0.0024527,98372.0,98371.0,0.94831108]
[1740115125645,0.0024527,98372.0,98371.0,0.94111108]
[1740115125948,0.0024527,98372.0,98371.0,0.91662823]
[1740115126174,0.0024527,98372.0,98371.0,0.21662823]
[1740115126859,0.1749347,98372.0,98371.0,0.20942823]
[1740115127173,0.1949347,98372.0,98371.0,0.21662823]
[1740115127636,0.0424527,98372.0,98371.0,0.12554709]
[1740115127937,0.04907474,98372.0,98371.0,0.11854709]
[1740115128378,0.05007474,98372.0,98371.0,0.12554709]
[1740115128556,0.04907474,98372.0,98371.0,0.11854709]
[1740115128752,0.05007474,98372.0,98371.0,0.12354709]
[1740115128951,0.0424527,98372.0,98371.0,0.12354709]
[1740115129315,0.0414527,98372.0,98371.0,0.11854709]
[1740115129519,0.0414527,98372.0,98371.0,0.11654709]
[1740115129722,0.0414527,98372.0,98371.0,0.12254709]
[1740115129921,0.0424527,98372.0,98371.0,0.12254709]
[1740115130262,0.0414527,98372.0,98371.0,0.11154709]
[1740115130416,0.1959347,98372.0,98371.0,0.11334709]
[1740115130617,0.1959347,98372.0,98371.0,0.12054709]
[1740115131166,0.1939347,98372.0,98371.0,0.11554709]
[1740115131520,0.1949347,98372.0,98371.0,0.12054709]
[1740115131723,0.21177561,98372.0,98371.0,0.12054709]
[1740115132282,0.21077561,98372.0,98371.0,0.11654709]
[1740115132493,0.21177561,98372.0,98371.0,0.12154709]
[1740115132830,0.05929361,98372.0,98371.0,0.12154709]
[1740115135327,0.0424527,98372.0,98371.0,0.12154709]
[1740115136361,0.1949347,98372.0,98371.0,0.12154709]
[1740115136831,0.0424527,98372.0,98371.0,0.12154709]
[1740115137038,0.1949347,98372.0,98371.0,0.12154709]
[1740115137909,0.1949347,98372.0,98371.0,0.11434709]
[1740115138112,0.1949347,98372.0,98371.0,0.12154709]
[1740115138312,0.21176255,98372.0,98371.0,0.12154709]
[1740115138675,0.61596255,98372.0,98371.0,0.0117014]
[1740115138919,0.61596255,98372.0,98371.0,0.0189014]
[1740115139060,0.62357145,98372.0,98371.0,0.0189014]
[1740115139830,0.62157145,98372.0,98371.0,0.0089014]
[1740115140028,0.62157145,98372.0,98371.0,0.0109014]
[1740115141191,0.62157145,98372.0,98371.0,0.0119014]
[1740115141405,0.61396255,98372.0,98371.0,0.0119014]
[1740115147699,0.62157046,98372.0,98371.0,0.0119014]
[1740115149862,0.62157046,98372.0,98371.0,0.0099014]
[1740115150250,0.62157046,98372.0,98371.0,0.0109014]
[1740115150486,0.62157046,98372.0,98371.0,0.0119014]
[1740115151817,0.62157046,98372.0,98371.0,0.0109014]
[1740115152146,0.62257046,98372.0,98371.0,0.0109014]
[1740115152525,0.62257046,98372.0,98371.0,0.0089014]
[1740115165883,0.62257046,98372.0,98371.0,0.0017014]
[1740115168711,0.54067046,98372.0,98371.0,0.0017014]
[1740115170842,0.52384261,98372.0,98371.0,0.0017014]
[1740115171410,0.52284261,98372.0,98371.0,0.0017014]
[1740115171612,0.52384261,98372.0,98371.0,0.0017014]
[1740115172979,0.52384261,98372.0,98371.0,0.0027014]
[1740115173862,0.5162347,98372.0,98371.0,0.0027014]
[1740115182463,0.80867555,98372.0,98371.0,0.0027014]
[1740115183828,0.68077555,98372.0,98371.0,0.0027014]
[1740115211476,0.6662347,98372.0,98371.0,0.0027014]
[1740115216052,0.6462347,98372.0,98371.0,0.0027014]
[1740115216258,0.3637527,98372.0,98371.0,0.0027014]
[1740115216404,0.5162347,98372.0,98371.0,0.0027014]
[1740115216606,0.3637527,98372.0,98371.0,0.0027014]
[1740115218352,0.5162347,98372.0,98371.0,0.10534709]
[1740115220202,0.3637527,98372.0,98371.0,0.10534709]
[1740115220411,0.5162347,98372.0,98371.0,0.10534709]
[1740115231735,0.52169153,98372.0,98371.0,0.10534709]
[1740115246345,0.52169153,98372.0,98371.0,0.0099014]
[1740115247321,0.52931927,98372.0,98371.0,0.0099014]
[1740115254834,0.52931927,98372.0,98371.0,0.0027014]
[1740115255045,0.52931927,98372.0,98371.0,0.0099014]
[1740115255894,0.52386244,98372.0,98371.0,0.0099014]
[1740115256100,0.52929517,98372.0,98371.0,0.0099014]
[1740115256794,0.54615592,98372.0,98371.0,0.0099014]
[1740115257943,0.52929517,98372.0,98371.0,0.0099014]
[1740115267163,0.69383602,98372.0,98371.0,0.0027014]
[1740115267394,0.77273602,98372.0,98371.0,0.0027014]
[1740115268008,0.77173602,98372.0,98371.0,0.0027014]
[1740115268214,0.77173602,98372.0,98371.0,0.0017014]
[1740115268417,0.77273602,98372.0,98371.0,0.0017014]
[1740115268624,0.78958494,98372.0,98371.0,0.0017014]
[1740115268852,0.78858494,98372.0,98371.0,0.0017014]
[1740115269058,0.78958494,98372.0,98371.0,0.0017014]
[1740115269570,0.79158494,98372.0,98371.0,0.0017014]
[1740115270170,0.78958494,98372.0,98371.0,0.0017014]
[1740115270488,0.8537341,98372.0,98371.0,4e-07]
[1740115270721,0.86128494,98372.0,98371.0,4e-07]
[1740115271920,0.86028494,98372.0,98371.0,4e-07]
[1740115272117,0.37702785,98369.0,98368.0,8e-07]
[1740115272319,0.55487354,98369.0,98368.0,8e-07]
[1740115272520,0.56029184,98369.0,98368.0,8e-07]
[1740115273279,0.57714076,98369.0,98368.0,8e-07]
[1740115273709,0.5897685,98369.0,98368.0,8e-07]
[1740115274359,0.5927685,98369.0,98368.0,8e-07]
[1740115274575,0.21353304,98369.0,98368.0,8e-07]
[1740115275030,0.51334604,98369.0,98368.0,8e-07]
[1740115275229,0.68583304,98369.0,98368.0,8e-07]
[1740115275457,0.69537389,98369.0,98368.0,8e-07]
[1740115275655,0.69637389,98369.0,98368.0,8e-07]
[1740115275977,0.69737389,98369.0,98368.0,8e-07]
[1740115276179,0.69337389,98369.0,98368.0,8e-07]
[1740115276384,0.69637389,98369.0,98368.0,8e-07]
[1740115277281,0.52388689,98369.0,98368.0,1.02477601]
[1740115277521,0.37934604,98369.0,98368.0,1.02477601]
[1740115278575,0.37634604,98369.0,98368.0,1.02477601]
[1740115278730,0.37534604,98369.0,98368.0,1.02477601]
[1740115278929,0.37534604,98369.0,98368.0,1.02677601]
[1740115279154,0.37534604,98369.0,98368.0,1.02977601]
[1740115279736,0.35534604,98369.0,98368.0,1.02977601]
[1740115279942,0.37534604,98369.0,98368.0,1.02977601]
[1740115282167,0.35534604,98369.0,98368.0,1.1324217]
[1740115282419,0.35534604,98369.0,98368.0,1.2553217]
[1740115282624,0.37534604,98369.0,98368.0,1.2553217]
[1740115282798,0.3477183,98369.0,98368.0,1.2553217]
[1740115283002,0.3677183,98369.0,98368.0,1.2553217]
[1740115283208,0.3477183,98369.0,98368.0,1.2553217]
[1740115283446,0.3677183,98369.0,98368.0,1.33655853]
[1740115283770,0.3623,98369.0,98368.0,1.33655853]
[1740115284005,0.3423,98369.0,98368.0,1.33655853]
[1740115284210,0.3623,98369.0,98368.0,1.33655853]
[1740115284661,0.3623,98369.0,98368.0,1.33355853]
[1740115284857,0.3633,98369.0,98368.0,1.33555853]
[1740115285280,0.3643,98369.0,98368.0,1.33955853]
[1740115286837,0.042,98369.0,98368.0,1.33955853]
[1740115289061,0.042,98369.0,98368.0,1.49204653]
[1740115289595,0.042,98369.0,98368.0,1.33955853]
[1740115290490,0.042,98369.0,98368.0,1.49204653]
[1740115290692,0.0428508,98369.0,98368.0,1.49204653]
[1740115291394,0.0428508,98369.0,98368.0,1.33955853]
[1740115292133,0.0428508,98369.0,98368.0,1.49204653]
[1740115292817,0.0428508,98369.0,98368.0,1.49928653]
[1740115293018,0.0028508,98369.0,98368.0,1.49928653]
[1740115294188,0.0018508,98369.0,98368.0,1.49528653]
[1740115294599,0.0018508,98369.0,98368.0,1.49828653]
[1740115295004,0.0028508,98369.0,98368.0,1.50528653]
[1740115302421,0.0028508,98369.0,98368.0,0.48051132]
[1740115306466,0.0028508,98369.0,98368.0,0.47327132]
[1740115306720,0.0028508,98369.0,98368.0,0.48051132]
[1740115307454,0.0028508,98369.0,98368.0,1.18051132]
[1740115322349,0.0028508,98369.0,98368.0,0.48051132]
[1740115326153,0.0028508,98369.0,98368.0,0.48047132]
[1740115326441,0.0028508,98369.0,98368.0,0.39923449]
[1740115329052,0.0028508,98369.0,98368.0,0.11664649]
[1740115329440,0.20064418,98369.0,98368.0,0.12384649]
[1740115330261,0.19964418,98369.0,98368.0,0.11684649]
[1740115330476,0.19864418,98369.0,98368.0,0.11284649]
[1740115330676,0.20626829,98369.0,98368.0,0.11584649]
[1740115331016,0.20626829,98369.0,98368.0,0.11284649]
[1740115331352,0.20626829,98369.0,98368.0,0.11884649]
[1740115333706,0.52856829,98369.0,98368.0,0.0162008]
[1740115333914,0.57776829,98369.0,98368.0,0.0162008]
[1740115334474,0.57776829,98369.0,98368.0,0.0072008]
[1740115334680,0.57776829,98369.0,98368.0,0.0082008]
[1740115334880,0.57776829,98369.0,98368.0,0.0092008]
[1740115335259,0.57776829,98369.0,98368.0,0.0082008]
[1740115335497,0.57776829,98369.0,98368.0,0.0092008]
[1740115336087,0.57776829,98369.0,98368.0,0.0082008]
[1740115336473,0.57776829,98369.0,98368.0,0.0092008]
[1740115337801,0.57776829,98369.0,98368.0,0.0072008]
[1740115341471,0.72776829,98369.0,98368.0,8e-07]
[1740115341634,0.82470914,98369.0,98368.0,8e-07]
[1740115342844,0.83070914,98369.0,98368.0,8e-07]
[1740115344696,0.83770914,98369.0,98368.0,0.0010008]
[1740115349504,0.85770914,98369.0,98368.0,0.0010008]
[1740115350339,0.85070914,98369.0,98368.0,8e-07]
[1740115350562,0.85770914,98369.0,98368.0,0.0010008]
[1740115350839,0.85170914,98369.0,98368.0,0.0010008]
[1740115351114,0.85770914,98369.0,98368.0,0.0020008]
[1740115351332,0.98035483,98369.0,98368.0,8e-07]
[1740115351752,0.08,98362.0,98361.0,8e-07]
[1740115351955,0.62608354,98362.0,98361.0,8e-07]
[1740115352159,0.63265418,98362.0,98361.0,8e-07]
[1740115352941,0.63665418,98362.0,98361.0,8e-07]
[1740115353411,0.64427829,98362.0,98361.0,8e-07]
[1740115353569,0.65427829,98362.0,98361.0,8e-07]
[1740115353966,0.64927829,98362.0,98361.0,8e-07]
[1740115354368,0.65627829,98362.0,98361.0,8e-07]
[1740115354998,0.97857829,98362.0,98361.0,8e-07]
[1740115356470,0.98617275,98362.0,98361.0,8e-07]
[1740115357673,1.04849052,98362.0,98361.0,8e-07]
[1740115358086,0.98617275,98362.0,98361.0,8e-07]
[1740115368016,0.86352706,98362.0,98361.0,8e-07]
[1740115368225,0.73712706,98362.0,98361.0,8e-07]
[1740115369200,0.69712706,98362.0,98361.0,8e-07]
[1740115369393,0.71712706,98362.0,98361.0,8e-07]
[1740115370422,0.7095326,98362.0,98361.0,8e-07]
[1740115378332,0.6895326,98362.0,98361.0,8e-07]
[1740115379103,0.7095326,98362.0,98361.0,8e-07]
[1740115379553,0.6895326,98362.0,98361.0,8e-07]
[1740115379953,0.7095326,98362.0,98361.0,8e-07]
[1740115382098,0.6895326,98362.0,98361.0,8e-07]
[1740115382317,0.68190849,98362.0,98361.0,8e-07]
[1740115382529,0.70190849,98362.0,98361.0,8e-07]
[1740115383487,0.68190849,98362.0,98361.0,8e-07]
[1740115383900,0.70190849,98362.0,98361.0,8e-07]
[1740115392262,0.36487064,98362.0,98361.0,8e-07]
[1740115392462,0.53736764,98362.0,98361.0,8e-07]
[1740115392663,0.38487064,98362.0,98361.0,8e-07]
[1740115392845,0.53036764,98362.0,98361.0,0.08123763]
[1740115393254,0.33787064,98362.0,98361.0,0.08123763]
[1740115393478,0.35787064,98362.0,98361.0,0.12913763]
[1740115393684,0.34887064,98362.0,98361.0,0.12913763]
[1740115393891,0.32887064,98362.0,98361.0,0.12913763]
[1740115394252,0.37687064,98362.0,98361.0,0.12913763]
[1740115394570,0.37187064,98362.0,98361.0,0.12913763]
[1740115394794,0.36887064,98362.0,98361.0,0.12913763]
[1740115394964,0.36987064,98362.0,98361.0,0.12913763]
[1740115395428,0.34987064,98362.0,98361.0,0.12913763]
[1740115395634,0.36987064,98362.0,98361.0,0.12913763]
[1740115396465,0.34987064,98362.0,98361.0,0.12913763]
[1740115396602,0.36987064,98362.0,98361.0,0.23178332]
[1740115396816,0.34987064,98362.0,98361.0,0.23178332]
[1740115397016,0.36987064,98362.0,98361.0,0.23178332]
[1740115397263,0.36987064,98362.0,98361.0,0.30988332]
[1740115397503,0.34987064,98362.0,98361.0,0.30988332]
[1740115397702,0.36987064,98362.0,98361.0,0.30988332]
[1740115399899,0.34987064,98362.0,98361.0,0.30988332]
[1740115400101,0.36987064,98362.0,98361.0,0.30988332]
[1740115402851,0.52236764,98362.0,98361.0,0.30988332]
[1740115403128,0.36987064,98362.0,98361.0,0.18388332]
[1740115403340,0.52236764,98362.0,98361.0,0.18388332]
[1740115403965,0.52236764,98362.0,98361.0,0.19108332]
[1740115405171,0.36987064,98362.0,98361.0,0.19108332]
[1740115405390,0.36987064,98362.0,98361.0,0.26648332]
[1740115406337,0.36887064,98362.0,98361.0,0.26648332]
[1740115406582,0.36987064,98362.0,98361.0,0.26648332]
[1740115406737,0.37087064,98362.0,98361.0,0.26748332]
[1740115412101,0.37087064,98362.0,98361.0,0.17904649]
[1740115412303,0.37087064,98362.0,98361.0,0.11084649]
[1740115412758,0.37087064,98362.0,98361.0,0.19314649]
[1740115413080,0.37087064,98362.0,98361.0,0.39404549]
[1740115413224,0.35087064,98362.0,98361.0,0.39404549]
[1740115413868,0.37087064,98362.0,98361.0,0.39404549]
[1740115414079,0.02857064,98362.0,98361.0,0.39404549]
[1740115414281,0.04857064,98362.0,98361.0,0.39404549]
[1740115414483,0.022,98362.0,98361.0,0.38684549]
[1740115414847,0.002,98362.0,98361.0,2.38354549]
[1740115415587,0.001,98362.0,98361.0,2.38354549]
[1740115415793,0.002,98362.0,98361.0,2.38354549]
[1740115416366,0.001,98362.0,98361.0,2.38254549]
[1740115416565,0.022,98362.0,98361.0,2.38754549]
[1740115416903,0.022,98362.0,98361.0,2.16324549]
[1740115417111,0.022,98362.0,98361.0,1.09804549]
[1740115418570,0.042,98362.0,98361.0,0.93834649]
[1740115418781,0.042,98362.0,98361.0,0.94554649]
[1740115418782,0.194497,98362.0,98361.0,0.94554649]
[1740115418967,0.20040099,98362.0,98361.0,0.94554649]
[1740115419155,0.20040099,98362.0,98361.0,0.88994649]
[1740115419380,0.20040099,98362.0,98361.0,0.80764649]
[1740115419582,0.20040099,98362.0,98361.0,0.11484649]
[1740115419940,0.19940099,98362.0,98361.0,0.10764649]
[1740115420398,0.19840099,98362.0,98361.0,0.11488649]
[1740115420598,0.19840099,98362.0,98361.0,0.11788649]
[1740115420798,0.19840099,98362.0,98361.0,0.0152408]
[1740115421107,0.19840099,98362.0,98361.0,0.0122408]
[1740115421303,0.19840099,98362.0,98361.0,0.0142408]
[1740115422215,0.19840099,98362.0,98361.0,0.0092408]
[1740115422635,0.19840099,98362.0,98361.0,0.0102408]
[1740115423204,0.19840099,98362.0,98361.0,0.0030008]
[1740115423408,0.52070099,98362.0,98361.0,0.0102008]
[1740115424444,0.52070099,98362.0,98361.0,0.0030008]
[1740115424621,0.52070099,98362.0,98361.0,0.0102008]
[1740115425029,0.52831467,98362.0,98361.0,0.0102008]
[1740115426395,0.52070099,98362.0,98361.0,0.0102008]
[1740115437643,0.52831035,98362.0,98361.0,0.0102008]
[1740115449130,0.52070099,98362.0,98361.0,0.0102008]
[1740115458049,0.36820399,98362.0,98361.0,0.0102008]
[1740115458256,0.52070099,98362.0,98361.0,0.0102008]
[1740115460876,0.58070099,98362.0,98361.0,0.0102008]
[1740115474018,0.42820399,98362.0,98361.0,0.0102008]
[1740115476377,0.40820399,98362.0,98361.0,0.0102008]
[1740115476602,0.40820399,98362.0,98361.0,0.11284649]
[1740115476997,0.38820399,98362.0,98361.0,0.11284649]
[1740115477307,0.40820399,98362.0,98361.0,0.11284649]
[1740115477612,0.43019797,98362.0,98361.0,0.11284649]
[1740115479266,0.41019797,98362.0,98361.0,0.11284649]
[1740115479483,0.43019797,98362.0,98361.0,0.11284649]
[1740115481406,0.58269497,98362.0,98361.0,0.11284649]
[1740115496496,0.56269497,98362.0,98361.0,0.11284649]
[1740115496712,0.58269497,98362.0,98361.0,0.11284649]
[1740115508756,0.56641497,98362.0,98361.0,0.11284649]
[1740115508954,0.57110576,98362.0,98361.0,0.11284649]
[1740115524300,0.57873283,98362.0,98361.0,0.11284649]
[1740115525366,0.57958363,98362.0,98361.0,0.11284649]
[1740115530111,0.42708663,98362.0,98361.0,0.11284649]
[1740115532277,0.40708663,98362.0,98361.0,0.11284649]
[1740115532605,0.42708663,98362.0,98361.0,0.19414649]
[1740115533637,0.42708663,98362.0,98361.0,0.34664549]
[1740115533838,0.42708663,98362.0,98361.0,0.19414649]
[1740115536134,0.41945956,98362.0,98361.0,0.19414649]
[1740115536338,0.41945956,98362.0,98361.0,0.34664549]
[1740115542370,0.10753557,98362.0,98361.0,0.34564549]
[1740115542576,0.10853557,98362.0,98361.0,0.34664549]
[1740115542755,0.1018508,98362.0,98361.0,0.34664549]
[1740115543921,0.1018508,98362.0,98361.0,0.34464549]
[1740115544122,0.0818508,98362.0,98361.0,0.34464549]
[1740115544322,0.0828508,98362.0,98361.0,0.35064549]
[1740115544528,0.1028508,98362.0,98361.0,0.35064549]
[1740115549586,0.0828508,98362.0,98361.0,0.35064549]
[1740115556133,0.1028508,98362.0,98361.0,0.35064549]
[1740115560203,0.1028508,98362.0,98361.0,0.34344549]
[1740115560428,0.1028508,98362.0,98361.0,0.35064549]
[1740115565507,0.1028508,98362.0,98361.0,0.10964649]
[1740115565712,0.10947549,98362.0,98361.0,0.11684649]
[1740115566776,0.26197249,98362.0,98361.0,0.10964649]
[1740115567078,0.26197249,98362.0,98361.0,0.11684649]
[1740115567573,0.26097249,98362.0,98361.0,0.11084649]
[1740115567780,0.25997249,98362.0,98361.0,0.10984649]
[1740115568082,0.26759363,98362.0,98361.0,0.11284649]
[1740115568313,0.26759363,98362.0,98361.0,0.10984649]
[1740115568724,0.26759363,98362.0,98361.0,0.11284649]
[1740115569312,0.26859363,98362.0,98361.0,0.11584649]
[1740115569730,0.26859363,98362.0,98361.0,0.11284649]
[1740115569930,0.26759363,98362.0,98361.0,0.11284649]
[1740115570064,0.26759363,98362.0,98361.0,0.11584649]
[1740115574542,0.26759363,98362.0,98361.0,0.10864649]
[1740115574772,0.26759363,98362.0,98361.0,0.11584649]
[1740115575731,0.25997249,98362.0,98361.0,0.11584649]
[1740115577868,0.10747549,98362.0,98361.0,0.11584649]
[1740115578049,0.25997249,98362.0,98361.0,0.11584649]
[1740115578619,0.10747549,98362.0,98361.0,0.11584649]
[1740115583776,0.25997249,98362.0,98361.0,0.11584649]
[1740115583979,0.10747549,98362.0,98361.0,0.11584649]
[1740115584226,0.25997249,98362.0,98361.0,0.11584649]
[1740115584437,0.10747549,98362.0,98361.0,0.11584649]
[1740115586709,0.10747549,98362.0,98361.0,0.26834549]
[1740115586912,0.1008508,98362.0,98361.0,0.34414549]
[1740115588698,0.1008508,98362.0,98361.0,0.33694549]
[1740115588906,0.1008508,98362.0,98361.0,0.11584649]
[1740115589508,0.10775745,98362.0,98361.0,0.11584649]
[1740115589622,0.1008508,98362.0,98361.0,0.26834549]
[1740115602085,0.1008508,98362.0,98361.0,0.10864649]
[1740115602275,0.2533478,98362.0,98361.0,0.11584649]
[1740115602478,0.26025735,98362.0,98361.0,0.11584649]
[1740115603660,0.26788135,98362.0,98361.0,0.11584649]
[1740115614082,0.26788135,98362.0,98361.0,0.10864649]
[1740115614290,0.26788135,98362.0,98361.0,0.0132008]
[1740115615339,0.26788135,98362.0,98361.0,0.0102008]
[1740115615625,0.26788135,98362.0,98361.0,0.0132008]
[1740115615848,0.26788135,98362.0,98361.0,0.0102008]
[1740115616262,0.26788135,98362.0,98361.0,0.0132008]
[1740115616621,0.57980534,98362.0,98361.0,0.0132008]
[1740115619901,0.57980534,98362.0,98361.0,0.0072008]
[1740115620305,0.57980534,98362.0,98361.0,0.0112008]
[1740115620735,0.57980534,98362.0,98361.0,0.0092008]
[1740115622209,0.57980534,98362.0,98361.0,0.0112008]
[1740115633318,0.57965155,98362.0,98361.0,0.0112008]
[1740115667395,0.57965155,98362.0,98361.0,0.0092008]
[1740115667606,0.57965155,98362.0,98361.0,0.0072008]
[1740115668400,0.57965155,98362.0,98361.0,0.0082008]
[1740115696869,0.40715455,98362.0,98361.0,0.0082008]
[1740115697072,0.40715455,98362.0,98361.0,0.0899008]
[1740115697073,0.42715455,98362.0,98361.0,0.0899008]
[1740115697572,0.41953055,98362.0,98361.0,0.0899008]
[1740115698294,0.41953055,98362.0,98361.0,0.0889008]
[1740115698495,0.41953055,98362.0,98361.0,0.0857008]
[1740115698676,0.41953055,98362.0,98361.0,0.0929008]
[1740115699077,0.41953055,98362.0,98361.0,0.10599518]
[1740115699302,0.41953055,98362.0,98361.0,0.0959008]
[1740115700309,0.42714822,98362.0,98361.0,0.0959008]
[1740115700798,0.57964522,98362.0,98361.0,0.0959008]
[1740115701442,0.57964522,98362.0,98361.0,0.0887008]
[1740115701645,0.57964522,98362.0,98361.0,0.0142008]
[1740115704486,0.57964522,98362.0,98361.0,0.0112008]
[1740115704837,0.57964522,98362.0,98361.0,0.0102008]
[1740115705038,0.57964522,98362.0,98361.0,0.0132008]
[1740115705273,0.57964522,98362.0,98361.0,0.0102008]
[1740115705469,0.57964522,98362.0,98361.0,0.0132008]
[1740115710122,0.57964522,98362.0,98361.0,0.0102008]
[1740115710611,0.57964522,98362.0,98361.0,0.0132008]
[1740115710799,0.57964522,98362.0,98361.0,0.0102008]
[1740115711007,0.57964522,98362.0,98361.0,0.0072008]
[1740115711163,0.57964522,98362.0,98361.0,0.0102008]
[1740115711366,0.57964522,98362.0,98361.0,0.0132008]
[1740115720892,0.57953033,98362.0,98361.0,0.0132008]
[1740115721550,0.42703333,98362.0,98361.0,0.0132008]
[1740115721843,0.57953033,98362.0,98361.0,0.0132008]
[1740115722323,0.42703333,98362.0,98361.0,0.0132008]
[1740115722550,0.38703333,98362.0,98361.0,0.0132008]
[1740115722780,0.40703333,98362.0,98361.0,0.0132008]
[1740115723307,0.42703333,98362.0,98361.0,0.11584649]
[1740115723399,0.39941566,98362.0,98361.0,0.42978232]